[Event "FIDE Women's Grand Swiss 2023"]
[Site "Villa Marina, Douglas, Isle of Man, Isle Of Man"]
[Date "2023.10.29"]
[Round "5.1"]
[White "Tan, Zhongyi"]
[Black "Assaubayeva, Bibisara"]
[Result "0-1"]
[TimeControl "40/90 + 30 + 30s/move"]
[WhiteFideId "8603642"]
[BlackFideId "13708694"]
[WhiteElo "2517"]
[BlackElo "2469"]

1. d4 {[%clk 01:30:52]} {[%emt 00:00:07]} Nf6 {[%clk 01:30:49]} {[%emt
00:00:11]} 2. c4 {[%clk 01:31:16]} {[%emt 00:00:06]} g6 {[%clk 01:31:16]}
{[%emt 00:00:04]} 3. Nc3 {[%clk 01:31:38]} {[%emt 00:00:08]} Bg7 {[%clk
01:31:40]} {[%emt 00:00:05]} 4. e4 {[%clk 01:31:59]} {[%emt 00:00:09]} d6
{[%clk 01:32:06]} {[%emt 00:00:04]} 5. Be2 {[%clk 01:32:19]} {[%emt 00:00:10]}
O-O {[%clk 01:32:27]} {[%emt 00:00:09]} 6. Nf3 {[%clk 01:32:44]} {[%emt
00:00:05]} e5 {[%clk 01:32:49]} {[%emt 00:00:08]} 7. d5 {[%clk 01:32:52]}
{[%emt 00:00:22]} a5 {[%clk 01:33:12]} {[%emt 00:00:07]} 8. h3 {[%clk
01:33:05]} {[%emt 00:00:17]} Nh5 {[%clk 01:25:33]} {[%emt 00:08:09]} 9. Ng1
{[%clk 01:33:24]} {[%emt 00:00:10]} Nf6 {[%clk 01:23:10]} {[%emt 00:02:53]} 10.
Be3 {[%clk 01:32:46]} {[%emt 00:01:08]} Na6 {[%clk 01:23:19]} {[%emt 00:00:23]}
11. Nf3 {[%clk 01:33:08]} {[%emt 00:00:07]} Bd7 {[%clk 01:16:56]} {[%emt
00:06:53]} 12. Nd2 {[%clk 01:33:07]} {[%emt 00:00:30]} Nc5 {[%clk 01:15:45]}
{[%emt 00:01:42]} 13. g4 {[%clk 01:24:24]} {[%emt 00:09:13]} Ne8 {[%clk
01:14:54]} {[%emt 00:01:21]} 14. h4 {[%clk 01:21:27]} {[%emt 00:03:26]} c6
{[%clk 01:08:31]} {[%emt 00:06:54]} 15. g5 {[%clk 01:19:21]} {[%emt 00:02:35]}
f5 {[%clk 01:00:43]} {[%emt 00:08:19]} 16. Bxc5 {[%clk 01:13:32]} {[%emt
00:06:19]} dxc5 {[%clk 01:00:33]} {[%emt 00:00:40]} 17. Qc2 {[%clk 01:13:55]}
{[%emt 00:00:08]} a4 {[%clk 00:46:36]} {[%emt 00:14:27]} 18. a3 {[%clk
01:10:19]} {[%emt 00:04:05]} Nd6 {[%clk 00:44:42]} {[%emt 00:02:23]} 19. f3
{[%clk 01:04:47]} {[%emt 00:06:03]} cxd5 {[%clk 00:39:24]} {[%emt 00:05:48]} 20.
Nxd5 {[%clk 01:05:07]} {[%emt 00:00:10]} Bc6 {[%clk 00:37:57]} {[%emt
00:01:57]} 21. Qd3 {[%clk 00:56:15]} {[%emt 00:09:23]} Ne8 {[%clk 00:35:23]}
{[%emt 00:03:04]} 22. O-O-O {[%clk 00:53:27]} {[%emt 00:03:17]} Nc7 {[%clk
00:33:33]} {[%emt 00:02:20]} 23. h5 {[%clk 00:43:42]} {[%emt 00:10:14]} Ne6
{[%clk 00:27:52]} {[%emt 00:06:12]} 24. exf5 {[%clk 00:41:29]} {[%emt
00:02:43]} gxf5 {[%clk 00:26:27]} {[%emt 00:01:56]} 25. h6 {[%clk 00:32:20]}
{[%emt 00:09:39]} Bh8 {[%clk 00:26:42]} {[%emt 00:00:14]} 26. Rhg1 {[%clk
00:30:10]} {[%emt 00:02:40]} Nd4 {[%clk 00:24:01]} {[%emt 00:03:11]} 27. g6
{[%clk 00:24:21]} {[%emt 00:06:19]} hxg6 {[%clk 00:23:58]} {[%emt 00:00:33]} 28.
Rxg6+ {[%clk 00:24:45]} {[%emt 00:00:06]} Kh7 {[%clk 00:23:43]} {[%emt
00:00:45]} 29. Rdg1 {[%clk 00:25:08]} {[%emt 00:00:06]} Bxd5 {[%clk 00:19:26]}
{[%emt 00:04:49]} 30. cxd5 {[%clk 00:19:33]} {[%emt 00:06:04]} Qxd5 {[%clk
00:18:21]} {[%emt 00:01:35]} 31. Kb1 {[%clk 00:10:18]} {[%emt 00:09:45]} Rg8
{[%clk 00:15:41]} {[%emt 00:03:11]} 32. Rxg8 {[%clk 00:05:10]} {[%emt
00:05:37]} Rxg8 {[%clk 00:16:09]} {[%emt 00:00:02]} 33. Rc1 {[%clk 00:04:54]}
{[%emt 00:00:45]} Rg3 {[%clk 00:12:48]} {[%emt 00:03:53]} 34. Nf1 {[%clk
00:04:26]} {[%emt 00:00:57]} e4 {[%clk 00:12:10]} {[%emt 00:01:08]} 35. Qd1
{[%clk 00:04:33]} {[%emt 00:00:23]} Rg1 {[%clk 00:08:37]} {[%emt 00:04:03]} 36.
fxe4 {[%clk 00:04:48]} {[%emt 00:00:15]} fxe4 {[%clk 00:08:27]} {[%emt
00:00:40]} 37. Bc4 {[%clk 00:05:01]} {[%emt 00:00:17]} Qf5 {[%clk 00:06:08]}
{[%emt 00:02:49]} 38. Ka1 {[%clk 00:02:21]} {[%emt 00:03:11]} b5 {[%clk
00:06:21]} {[%emt 00:00:17]} 39. Ba2 {[%clk 00:02:35]} {[%emt 00:00:15]} c4
{[%clk 00:06:09]} {[%emt 00:00:43]} 40. Qe1 {[%clk 00:02:47]} {[%emt 00:00:17]}
Nc2+ {[%clk 00:06:30]} {[%emt 00:00:10]} 0-1

[Event "FIDE Women's Grand Swiss 2023"]
[Site "Villa Marina, Douglas, Isle of Man, Isle Of Man"]
[Date "2023.10.29"]
[Round "5.2"]
[White "Vaishali, Rameshbabu"]
[Black "Muzychuk, Anna"]
[Result "1/2-1/2"]
[TimeControl "40/90 + 30 + 30s/move"]
[WhiteFideId "5091756"]
[BlackFideId "14111330"]
[WhiteElo "2448"]
[BlackElo "2510"]

1. e4 {[%clk 01:30:26]} {[%emt 00:00:33]} e5 {[%clk 01:30:52]} {[%emt
00:00:09]} 2. Nf3 {[%clk 01:30:52]} {[%emt 00:00:04]} Nc6 {[%clk 01:31:17]}
{[%emt 00:00:06]} 3. Bb5 {[%clk 01:31:17]} {[%emt 00:00:04]} a6 {[%clk
01:31:40]} {[%emt 00:00:07]} 4. Ba4 {[%clk 01:31:41]} {[%emt 00:00:05]} Nf6
{[%clk 01:32:03]} {[%emt 00:00:08]} 5. O-O {[%clk 01:31:58]} {[%emt 00:00:12]}
Be7 {[%clk 01:32:23]} {[%emt 00:00:11]} 6. Bxc6 {[%clk 01:32:12]} {[%emt
00:00:16]} dxc6 {[%clk 01:32:40]} {[%emt 00:00:13]} 7. d3 {[%clk 01:32:34]}
{[%emt 00:00:08]} Nd7 {[%clk 01:32:05]} {[%emt 00:01:05]} 8. Be3 {[%clk
01:32:47]} {[%emt 00:00:16]} O-O {[%clk 01:30:39]} {[%emt 00:01:56]} 9. Nbd2
{[%clk 01:33:04]} {[%emt 00:00:14]} f6 {[%clk 01:21:45]} {[%emt 00:09:24]} 10.
Nh4 {[%clk 01:31:36]} {[%emt 00:01:57]} g6 {[%clk 01:19:26]} {[%emt 00:02:50]}
11. Nhf3 {[%clk 01:31:32]} {[%emt 00:00:33]} Nc5 {[%clk 01:18:01]} {[%emt
00:01:56]} 12. d4 {[%clk 01:31:04]} {[%emt 00:00:57]} exd4 {[%clk 01:18:07]}
{[%emt 00:00:25]} 13. Nxd4 {[%clk 01:31:31]} {[%emt 00:00:03]} Ne6 {[%clk
01:16:17]} {[%emt 00:02:20]} 14. Nxe6 {[%clk 01:25:29]} {[%emt 00:06:32]} Bxe6
{[%clk 01:16:42]} {[%emt 00:00:05]} 15. Qe2 {[%clk 01:25:36]} {[%emt 00:00:23]}
Qe8 {[%clk 01:04:06]} {[%emt 00:13:07]} 16. f4 {[%clk 00:54:40]} {[%emt
00:31:24]} f5 {[%clk 01:02:44]} {[%emt 00:01:53]} 17. Rae1 {[%clk 00:51:08]}
{[%emt 00:04:02]} Qf7 {[%clk 00:59:31]} {[%emt 00:03:43]} 18. b3 {[%clk
00:33:40]} {[%emt 00:17:58]} Rae8 {[%clk 00:56:15]} {[%emt 00:03:46]} 19. c4
{[%clk 00:26:51]} {[%emt 00:07:19]} Bb4 {[%clk 00:49:25]} {[%emt 00:07:20]} 20.
e5 {[%clk 00:25:57]} {[%emt 00:01:24]} Rd8 {[%clk 00:48:48]} {[%emt 00:01:07]}
21. Rd1 {[%clk 00:26:00]} {[%emt 00:00:26]} Rd7 {[%clk 00:43:38]} {[%emt
00:05:41]} 22. Nf3 {[%clk 00:25:54]} {[%emt 00:00:36]} Rfd8 {[%clk 00:43:24]}
{[%emt 00:00:44]} 23. Ng5 {[%clk 00:16:23]} {[%emt 00:10:01]} Qe8 {[%clk
00:43:19]} {[%emt 00:00:35]} 24. Rxd7 {[%clk 00:13:49]} {[%emt 00:03:04]} Rxd7
{[%clk 00:43:17]} {[%emt 00:00:32]} 25. Nxe6 {[%clk 00:09:18]} {[%emt
00:05:01]} Qxe6 {[%clk 00:43:46]} 26. Rd1 {[%clk 00:09:43]} {[%emt 00:00:05]}
Kf7 {[%clk 00:41:29]} {[%emt 00:02:47]} 27. Kf2 {[%clk 00:08:23]} {[%emt
00:01:50]} Be7 {[%clk 00:37:21]} {[%emt 00:04:38]} 28. h3 {[%clk 00:07:32]}
{[%emt 00:01:20]} h5 {[%clk 00:37:06]} {[%emt 00:00:46]} 29. g3 {[%clk
00:06:32]} {[%emt 00:01:30]} Ke8 {[%clk 00:35:06]} {[%emt 00:02:31]} 30. Rxd7
{[%clk 00:04:42]} {[%emt 00:02:20]} Qxd7 {[%clk 00:35:10]} {[%emt 00:00:25]} 31.
Qd2 {[%clk 00:04:40]} {[%emt 00:00:31]} Qxd2+ {[%clk 00:34:03]} {[%emt
00:01:38]} 32. Bxd2 {[%clk 00:05:09]} {[%emt 00:00:01]} Kd7 {[%clk 00:33:58]}
{[%emt 00:00:35]} 33. g4 {[%clk 00:05:07]} {[%emt 00:00:31]} Ke6 {[%clk
00:33:49]} {[%emt 00:00:40]} 34. Kf3 {[%clk 00:05:03]} {[%emt 00:00:34]} b6
{[%clk 00:32:49]} {[%emt 00:01:30]} 35. Be3 {[%clk 00:05:06]} {[%emt 00:00:26]}
c5 {[%clk 00:31:28]} {[%emt 00:01:51]} 36. gxh5 {[%clk 00:04:35]} {[%emt
00:01:01]} gxh5 {[%clk 00:31:55]} {[%emt 00:00:04]} 37. Bf2 {[%clk 00:04:57]}
{[%emt 00:00:07]} Kf7 {[%clk 00:32:02]} {[%emt 00:00:24]} 1/2-1/2

[Event "FIDE Women's Grand Swiss 2023"]
[Site "Villa Marina, Douglas, Isle of Man, Isle Of Man"]
[Date "2023.10.29"]
[Round "5.3"]
[White "Goryachkina, Aleksandra"]
[Black "Kamalidenova, Meruert"]
[Result "1-0"]
[TimeControl "40/90 + 30 + 30s/move"]
[WhiteFideId "4147103"]
[BlackFideId "13712802"]
[WhiteElo "2558"]
[BlackElo "2351"]

1. e4 {[%clk 01:30:49]} {[%emt 00:00:10]} c5 {[%clk 01:30:49]} {[%emt
00:00:11]} 2. Nf3 {[%clk 01:31:08]} {[%emt 00:00:11]} d6 {[%clk 01:30:58]}
{[%emt 00:00:21]} 3. d4 {[%clk 01:30:56]} {[%emt 00:00:42]} cxd4 {[%clk
01:31:22]} {[%emt 00:00:06]} 4. Nxd4 {[%clk 01:31:21]} {[%emt 00:00:05]} Nf6
{[%clk 01:31:47]} {[%emt 00:00:05]} 5. f3 {[%clk 01:31:17]} {[%emt 00:00:34]}
e5 {[%clk 01:31:09]} {[%emt 00:01:08]} 6. Nb3 {[%clk 01:31:22]} {[%emt
00:00:25]} a5 {[%clk 01:30:16]} {[%emt 00:01:23]} 7. a4 {[%clk 01:24:33]}
{[%emt 00:07:20]} Be7 {[%clk 01:29:43]} {[%emt 00:01:03]} 8. Bb5+ {[%clk
01:21:28]} {[%emt 00:03:35]} Nc6 {[%clk 01:28:44]} {[%emt 00:01:28]} 9. c4
{[%clk 01:16:54]} {[%emt 00:05:05]} O-O {[%clk 01:26:49]} {[%emt 00:02:24]} 10.
Be3 {[%clk 01:15:24]} {[%emt 00:02:00]} Be6 {[%clk 01:24:36]} {[%emt 00:02:43]}
11. Nc3 {[%clk 01:13:06]} {[%emt 00:02:48]} Nb4 {[%clk 01:22:27]} {[%emt
00:02:39]} 12. O-O {[%clk 01:04:18]} {[%emt 00:09:19]} Nh5 {[%clk 01:20:01]}
{[%emt 00:02:56]} 13. g3 {[%clk 00:56:58]} {[%emt 00:07:50]} Bg5 {[%clk
01:10:05]} {[%emt 00:10:25]} 14. Bf2 {[%clk 00:54:32]} {[%emt 00:02:56]} g6
{[%clk 01:07:58]} {[%emt 00:02:38]} 15. Qe2 {[%clk 00:52:13]} {[%emt 00:02:49]}
Qc7 {[%clk 01:04:38]} {[%emt 00:03:49]} 16. Nc1 {[%clk 00:46:11]} {[%emt
00:06:33]} f5 {[%clk 01:00:24]} {[%emt 00:04:43]} 17. exf5 {[%clk 00:40:30]}
{[%emt 00:06:11]} Bxf5 {[%clk 00:59:22]} {[%emt 00:01:32]} 18. Ne4 {[%clk
00:39:49]} {[%emt 00:01:11]} Bxe4 {[%clk 00:54:23]} {[%emt 00:05:29]} 19. Qxe4
{[%clk 00:37:20]} {[%emt 00:02:59]} b6 {[%clk 00:46:09]} {[%emt 00:08:44]} 20.
Nd3 {[%clk 00:34:05]} {[%emt 00:03:45]} Bd2 {[%clk 00:43:04]} {[%emt 00:03:34]}
21. c5 {[%clk 00:26:17]} {[%emt 00:08:19]} dxc5 {[%clk 00:33:48]} {[%emt
00:09:47]} 22. Nxe5 {[%clk 00:23:25]} {[%emt 00:03:22]} Nf6 {[%clk 00:31:54]}
{[%emt 00:02:24]} 23. Qc4+ {[%clk 00:20:39]} {[%emt 00:03:16]} Kg7 {[%clk
00:29:20]} {[%emt 00:03:04]} 24. Rad1 {[%clk 00:19:41]} {[%emt 00:01:27]} Rad8
{[%clk 00:23:22]} {[%emt 00:06:28]} 25. f4 {[%clk 00:18:02]} {[%emt 00:02:09]}
Rd5 {[%clk 00:16:14]} {[%emt 00:07:39]} 26. Qe2 {[%clk 00:17:05]} {[%emt
00:01:26]} Rfd8 {[%clk 00:16:21]} {[%emt 00:00:23]} 27. Nc4 {[%clk 00:17:00]}
{[%emt 00:00:35]} Bxf4 {[%clk 00:15:54]} {[%emt 00:00:56]} 28. gxf4 {[%clk
00:16:53]} {[%emt 00:00:38]} Rxd1 {[%clk 00:15:03]} {[%emt 00:01:22]} 29. Rxd1
{[%clk 00:17:11]} {[%emt 00:00:12]} Rxd1+ {[%clk 00:15:26]} {[%emt 00:00:07]}
30. Qxd1 {[%clk 00:17:37]} {[%emt 00:00:03]} Qxf4 {[%clk 00:15:49]} {[%emt
00:00:07]} 31. Bg3 {[%clk 00:16:45]} {[%emt 00:01:22]} Qe4 {[%clk 00:15:32]}
{[%emt 00:00:47]} 32. Nxb6 {[%clk 00:13:30]} {[%emt 00:03:46]} Ng4 {[%clk
00:14:42]} {[%emt 00:01:20]} 33. Qd7+ {[%clk 00:13:03]} {[%emt 00:00:57]} Kh6
{[%clk 00:13:14]} {[%emt 00:01:58]} 34. Qd2+ {[%clk 00:12:52]} {[%emt
00:00:40]} Kg7 {[%clk 00:13:34]} {[%emt 00:00:11]} 35. Qf4 {[%clk 00:11:38]}
{[%emt 00:01:44]} Qb1+ {[%clk 00:11:39]} {[%emt 00:02:24]} 36. Bf1 {[%clk
00:11:40]} {[%emt 00:00:28]} 1-0

[Event "FIDE Women's Grand Swiss 2023"]
[Site "Villa Marina, Douglas, Isle of Man, Isle Of Man"]
[Date "2023.10.29"]
[Round "5.4"]
[White "Munguntuul, Batkhuyag"]
[Black "Stefanova, Antoaneta"]
[Result "1/2-1/2"]
[TimeControl "40/90 + 30 + 30s/move"]
[WhiteFideId "4900758"]
[BlackFideId "2902257"]
[WhiteElo "2366"]
[BlackElo "2424"]

1. e4 {[%clk 01:30:59]} {[%emt 01:29:47]} e5 {[%clk 01:30:55]} {[%emt
00:00:06]} 2. Nf3 {[%clk 01:31:27]} {[%emt 00:00:02]} Nc6 {[%clk 01:31:21]}
{[%emt 00:00:05]} 3. Bb5 {[%clk 01:31:51]} {[%emt 00:00:05]} a6 {[%clk
01:31:18]} {[%emt 00:00:33]} 4. Ba4 {[%clk 01:32:18]} {[%emt 00:00:03]} Nf6
{[%clk 01:31:14]} {[%emt 00:00:34]} 5. d3 {[%clk 01:32:42]} {[%emt 00:00:05]}
Bc5 {[%clk 01:25:19]} {[%emt 00:06:25]} 6. O-O {[%clk 01:18:17]} {[%emt
00:14:55]} b5 {[%clk 01:18:09]} {[%emt 00:07:41]} 7. Bb3 {[%clk 01:18:44]}
{[%emt 00:00:03]} d6 {[%clk 01:18:36]} {[%emt 00:00:04]} 8. a3 {[%clk
01:07:58]} {[%emt 00:11:15]} O-O {[%clk 01:06:21]} {[%emt 00:12:45]} 9. h3
{[%clk 00:58:42]} {[%emt 00:09:46]} h6 {[%clk 01:01:06]} {[%emt 00:05:45]} 10.
Nc3 {[%clk 00:59:01]} {[%emt 00:00:10]} Rb8 {[%clk 00:52:26]} {[%emt 00:09:11]}
11. Be3 {[%clk 00:52:26]} {[%emt 00:07:04]} Bxe3 {[%clk 00:43:57]} {[%emt
00:08:59]} 12. fxe3 {[%clk 00:52:54]} {[%emt 00:00:02]} Be6 {[%clk 00:42:32]}
{[%emt 00:01:56]} 13. Bxe6 {[%clk 00:39:01]} {[%emt 00:14:22]} fxe6 {[%clk
00:42:58]} {[%emt 00:00:04]} 14. d4 {[%clk 00:38:59]} {[%emt 00:00:32]} a5
{[%clk 00:40:11]} {[%emt 00:03:17]} 15. Qd3 {[%clk 00:36:14]} {[%emt 00:03:14]}
b4 {[%clk 00:31:16]} {[%emt 00:09:25]} 16. axb4 {[%clk 00:36:22]} {[%emt
00:00:22]} axb4 {[%clk 00:31:32]} {[%emt 00:00:15]} 17. Ne2 {[%clk 00:36:08]}
{[%emt 00:00:43]} Qe8 {[%clk 00:13:28]} {[%emt 00:18:34]} 18. Ng3 {[%clk
00:28:30]} {[%emt 00:08:07]} Qg6 {[%clk 00:12:46]} {[%emt 00:01:12]} 19. Kh2
{[%clk 00:28:55]} {[%emt 00:00:05]} Rb6 {[%clk 00:06:21]} {[%emt 00:06:55]} 20.
dxe5 {[%clk 00:24:29]} {[%emt 00:04:57]} Nxe5 {[%clk 00:05:56]} {[%emt
00:00:55]} 21. Nxe5 {[%clk 00:24:01]} {[%emt 00:00:58]} dxe5 {[%clk 00:06:25]}
{[%emt 00:00:02]} 22. Qc4 {[%clk 00:23:10]} {[%emt 00:01:20]} Rf7 {[%clk
00:03:27]} {[%emt 00:03:27]} 23. Ra7 {[%clk 00:17:31]} {[%emt 00:06:10]} Ne8
{[%clk 00:03:41]} {[%emt 00:00:16]} 24. Ra8 {[%clk 00:13:47]} {[%emt 00:04:14]}
Kh7 {[%clk 00:03:18]} {[%emt 00:00:52]} 25. Qc5 {[%clk 00:11:51]} {[%emt
00:02:27]} Rxf1 {[%clk 00:02:07]} {[%emt 00:01:41]} 26. Nxf1 {[%clk 00:12:19]}
{[%emt 00:00:02]} Rd6 {[%clk 00:02:02]} {[%emt 00:00:36]} 27. Qxe5 {[%clk
00:07:58]} {[%emt 00:04:51]} Rd1 {[%clk 00:02:27]} {[%emt 00:00:05]} 28. Ng3
{[%clk 00:05:53]} {[%emt 00:02:36]} Rd2 {[%clk 00:02:52]} {[%emt 00:00:05]} 29.
Rb8 {[%clk 00:02:23]} {[%emt 00:04:00]} Rxc2 {[%clk 00:01:44]} {[%emt
00:01:37]} 30. Rxb4 {[%clk 00:02:25]} {[%emt 00:00:28]} Nd6 {[%clk 00:01:49]}
{[%emt 00:00:25]} 31. Qf4 {[%clk 00:01:01]} {[%emt 00:01:54]} Qf7 {[%clk
00:01:10]} {[%emt 00:01:07]} 32. b3 {[%clk 00:01:09]} {[%emt 00:00:23]} Rf2
{[%clk 00:01:04]} {[%emt 00:00:35]} 33. Qxf7 {[%clk 00:01:15]} {[%emt
00:00:25]} Nxf7 {[%clk 00:00:58]} {[%emt 00:00:36]} 34. Rc4 {[%clk 00:01:10]}
{[%emt 00:00:34]} Rb2 {[%clk 00:01:14]} {[%emt 00:00:15]} 35. Rxc7 {[%clk
00:01:30]} {[%emt 00:00:11]} Kg6 {[%clk 00:01:01]} {[%emt 00:00:43]} 36. Rc3
{[%clk 00:00:50]} {[%emt 00:01:10]} Ng5 {[%clk 00:01:11]} {[%emt 00:00:20]} 37.
Kg1 {[%clk 00:01:03]} {[%emt 00:00:16]} Rb1+ {[%clk 00:01:30]} {[%emt
00:00:12]} 38. Kf2 {[%clk 00:01:25]} {[%emt 00:00:08]} Rb2+ {[%clk 00:01:59]}
{[%emt 00:00:01]} 39. Kf1 {[%clk 00:01:37]} {[%emt 00:00:18]} Rb1+ {[%clk
00:02:10]} {[%emt 00:00:20]} 40. Ke2 {[%clk 00:01:53]} {[%emt 00:00:13]} Rb2+
{[%clk 00:02:34]} {[%emt 00:00:07]} 41. Kf1 {[%clk 00:26:34]} {[%emt 00:05:49]}
Rb1+ {[%clk 00:31:44]} {[%emt 00:01:20]} 42. Kf2 {[%clk 00:24:14]} {[%emt
00:02:50]} Rb2+ {[%clk 00:31:18]} {[%emt 00:00:55]} 43. Kg1 {[%clk 00:24:40]}
{[%emt 00:00:04]} Rb1+ {[%clk 00:29:47]} {[%emt 00:02:01]} 44. Kh2 {[%clk
00:21:23]} {[%emt 00:03:47]} Rb2 {[%clk 00:30:11]} {[%emt 00:00:06]} 45. Rc1
{[%clk 00:20:58]} {[%emt 00:00:56]} Rxb3 {[%clk 00:21:30]} {[%emt 00:09:11]} 46.
h4 {[%clk 00:21:10]} {[%emt 00:00:18]} Nh7 {[%clk 00:19:16]} {[%emt 00:02:44]}
47. Rc6 {[%clk 00:14:59]} {[%emt 00:06:40]} Nf6 {[%clk 00:16:43]} {[%emt
00:03:03]} 48. Rxe6 {[%clk 00:15:21]} {[%emt 00:00:09]} Kf7 {[%clk 00:13:45]}
{[%emt 00:03:28]} 49. Ra6 {[%clk 00:15:37]} {[%emt 00:00:14]} Ng4+ {[%clk
00:14:01]} {[%emt 00:00:14]} 50. Kh3 {[%clk 00:15:49]} {[%emt 00:00:17]} Nf2+
{[%clk 00:11:43]} {[%emt 00:02:48]} 51. Kh2 {[%clk 00:16:17]} {[%emt 00:00:01]}
Ng4+ {[%clk 00:12:00]} {[%emt 00:00:14]} 52. Kh3 {[%clk 00:16:45]} {[%emt
00:00:02]} Nf2+ {[%clk 00:12:26]} {[%emt 00:00:04]} 53. Kh2 {[%clk 00:17:10]}
{[%emt 00:00:05]} Ng4+ {[%clk 00:12:53]} {[%emt 00:00:03]} 1/2-1/2

[Event "FIDE Women's Grand Swiss 2023"]
[Site "Villa Marina, Douglas, Isle of Man, Isle Of Man"]
[Date "2023.10.29"]
[Round "5.5"]
[White "Injac, Teodora"]
[Black "Efroimski, Marsel"]
[Result "0-1"]
[TimeControl "40/90 + 30 + 30s/move"]
[WhiteFideId "932400"]
[BlackFideId "2810964"]
[WhiteElo "2426"]
[BlackElo "2447"]

1. d4 {[%clk 01:30:49]} {[%emt 00:00:10]} d5 {[%clk 01:30:55]} {[%emt
00:00:05]} 2. Nf3 {[%clk 01:30:54]} {[%emt 00:00:26]} Nf6 {[%clk 01:31:21]}
{[%emt 00:00:05]} 3. c4 {[%clk 01:31:18]} {[%emt 00:00:05]} e6 {[%clk
01:31:49]} {[%emt 00:00:02]} 4. g3 {[%clk 01:31:27]} {[%emt 00:00:21]} Bb4+
{[%clk 01:32:14]} {[%emt 00:00:05]} 5. Nbd2 {[%clk 01:31:06]} {[%emt 00:00:51]}
O-O {[%clk 01:32:22]} {[%emt 00:00:23]} 6. Bg2 {[%clk 01:30:14]} {[%emt
00:01:22]} b6 {[%clk 01:32:46]} {[%emt 00:00:06]} 7. O-O {[%clk 01:30:08]}
{[%emt 00:00:36]} Bb7 {[%clk 01:33:13]} {[%emt 00:00:03]} 8. b3 {[%clk
01:20:52]} {[%emt 00:09:45]} dxc4 {[%clk 01:02:54]} {[%emt 00:30:50]} 9. Nxc4
{[%clk 01:16:09]} {[%emt 00:05:12]} b5 {[%clk 00:51:11]} {[%emt 00:12:14]} 10.
a3 {[%clk 00:47:35]} {[%emt 00:29:05]} Bc3 {[%clk 00:39:39]} {[%emt 00:12:02]}
11. Bb2 {[%clk 00:47:41]} {[%emt 00:00:23]} Ne4 {[%clk 00:31:54]} {[%emt
00:08:16]} 12. Qc2 {[%clk 00:38:16]} {[%emt 00:09:56]} bxc4 {[%clk 00:32:13]}
{[%emt 00:00:10]} 13. Bxc3 {[%clk 00:38:39]} {[%emt 00:00:06]} cxb3 {[%clk
00:32:36]} {[%emt 00:00:08]} 14. Qxb3 {[%clk 00:38:46]} {[%emt 00:00:24]} Bd5
{[%clk 00:32:21]} {[%emt 00:00:44]} 15. Qc2 {[%clk 00:38:46]} {[%emt 00:00:29]}
Nxc3 {[%clk 00:32:06]} {[%emt 00:00:46]} 16. Qxc3 {[%clk 00:39:10]} {[%emt
00:00:06]} Nd7 {[%clk 00:31:57]} {[%emt 00:00:38]} 17. Rfc1 {[%clk 00:34:36]}
{[%emt 00:05:04]} c5 {[%clk 00:31:26]} {[%emt 00:01:01]} 18. dxc5 {[%clk
00:32:08]} {[%emt 00:02:58]} Rc8 {[%clk 00:31:53]} {[%emt 00:00:03]} 19. Qd4
{[%clk 00:27:21]} {[%emt 00:05:16]} Bxf3 {[%clk 00:19:03]} {[%emt 00:13:21]} 20.
Bxf3 {[%clk 00:27:44]} {[%emt 00:00:06]} Nxc5 {[%clk 00:19:29]} {[%emt
00:00:04]} 21. Qe3 {[%clk 00:24:16]} {[%emt 00:03:58]} Qe7 {[%clk 00:19:10]}
{[%emt 00:00:49]} 22. Rc4 {[%clk 00:23:22]} {[%emt 00:01:23]} Rc7 {[%clk
00:18:42]} {[%emt 00:00:59]} 23. Rac1 {[%clk 00:20:35]} {[%emt 00:03:16]} Rfc8
{[%clk 00:19:08]} {[%emt 00:00:05]} 24. Kg2 {[%clk 00:13:03]} {[%emt 00:08:02]}
h6 {[%clk 00:18:31]} {[%emt 00:01:07]} 25. h4 {[%clk 00:12:47]} {[%emt
00:00:45]} Na4 {[%clk 00:10:35]} {[%emt 00:08:27]} 26. Rxc7 {[%clk 00:10:08]}
{[%emt 00:03:09]} Rxc7 {[%clk 00:11:05]} 27. Rb1 {[%clk 00:07:35]} {[%emt
00:03:03]} Nb6 {[%clk 00:11:31]} {[%emt 00:00:04]} 28. a4 {[%clk 00:07:37]}
{[%emt 00:00:28]} Qc5 {[%clk 00:11:36]} {[%emt 00:00:24]} 29. Qd3 {[%clk
00:06:47]} {[%emt 00:01:20]} Rd7 {[%clk 00:07:49]} {[%emt 00:04:18]} 30. Qa6
{[%clk 00:06:04]} {[%emt 00:01:12]} Kh7 {[%clk 00:05:16]} {[%emt 00:03:03]} 31.
a5 {[%clk 00:05:40]} {[%emt 00:00:54]} Nc4 {[%clk 00:05:30]} {[%emt 00:00:16]}
32. Be4+ {[%clk 00:04:25]} {[%emt 00:01:45]} g6 {[%clk 00:03:17]} {[%emt
00:02:43]} 33. h5 {[%clk 00:04:53]} Nd2 {[%clk 00:03:03]} {[%emt 00:00:44]} 34.
hxg6+ {[%clk 00:05:17]} {[%emt 00:00:07]} Kg7 {[%clk 00:03:26]} {[%emt
00:00:06]} 35. Rb5 {[%clk 00:04:15]} {[%emt 00:01:32]} Qc1 {[%clk 00:03:32]}
{[%emt 00:00:24]} 36. Qc6 {[%clk 00:02:35]} {[%emt 00:02:11]} Qf1+ {[%clk
00:03:49]} {[%emt 00:00:13]} 37. Kh2 {[%clk 00:03:03]} {[%emt 00:00:02]} Qxf2+
{[%clk 00:04:02]} {[%emt 00:00:17]} 38. Kh3 {[%clk 00:02:19]} {[%emt 00:01:14]}
Nxe4 {[%clk 00:02:14]} {[%emt 00:02:19]} 39. Qxe4 {[%clk 00:02:24]} {[%emt
00:00:25]} Qf1+ {[%clk 00:02:29]} {[%emt 00:00:14]} 40. Kh2 {[%clk 00:01:43]}
{[%emt 00:01:11]} Qf2+ {[%clk 00:02:45]} {[%emt 00:00:14]} 41. Kh3 {[%clk
00:02:01]} {[%emt 00:00:12]} Qf1+ {[%clk 00:28:00]} {[%emt 00:05:16]} 42. Kh2
{[%clk 00:20:05]} {[%emt 00:12:25]} fxg6 {[%clk 00:22:51]} {[%emt 00:05:39]} 43.
a6 {[%clk 00:16:14]} {[%emt 00:04:22]} Qf2+ {[%clk 00:19:49]} {[%emt 00:03:32]}
44. Kh3 {[%clk 00:13:43]} {[%emt 00:03:00]} Rf7 {[%clk 00:14:55]} {[%emt
00:05:24]} 45. Qxe6 {[%clk 00:05:01]} {[%emt 00:09:12]} Qf1+ {[%clk 00:12:49]}
{[%emt 00:02:36]} 46. Kh4 {[%clk 00:03:19]} {[%emt 00:02:12]} Qg2 {[%clk
00:06:46]} {[%emt 00:06:34]} 47. Qe5+ {[%clk 00:03:38]} {[%emt 00:00:12]} Kh7
{[%clk 00:07:11]} {[%emt 00:00:04]} 48. e4 {[%clk 00:01:04]} {[%emt 00:03:04]}
Qh2+ {[%clk 00:07:19]} {[%emt 00:00:22]} 49. Kg4 {[%clk 00:01:31]} {[%emt
00:00:03]} h5+ {[%clk 00:04:56]} {[%emt 00:02:53]} 50. Kg5 {[%clk 00:02:00]}
Qe2 {[%clk 00:04:50]} {[%emt 00:00:37]} 0-1